[Event "Betsys MČR v online bleskovém šachu 2021"]
[Site "Chess.com"]
[Date "2021.04.17"]
[Round "1"]
[White "Drak1961"]
[Black "DominikS3"]
[Result "1-0"]
[WhiteElo "2052"]
[BlackElo "1314"]
[TimeControl "180+1"]
[EndTime "9:03:49 PDT"]
[Termination "Uživatel Drak1961 zvítězil po vzdání soupeře"]

1. d4 {[%clk 0:02:59.3]} 1... d5 {[%clk 0:02:58.8]} 2. Nf3 {[%clk 0:02:59]} 2...
e6 {[%clk 0:02:58.8]} 3. g3 {[%clk 0:02:58.9]} 3... Nf6 {[%clk 0:02:58.2]} 4.
Bg2 {[%clk 0:02:58.6]} 4... b6 {[%clk 0:02:57.8]} 5. O-O {[%clk 0:02:58.2]} 5...
Be7 {[%clk 0:02:56.9]} 6. c4 {[%clk 0:02:56.9]} 6... O-O {[%clk 0:02:57.4]} 7.
Ne5 {[%clk 0:02:55]} 7... Bb7 {[%clk 0:02:54.5]} 8. Nc3 {[%clk 0:02:53.1]} 8...
c5 {[%clk 0:02:50.6]} 9. e3 {[%clk 0:02:49.7]} 9... Na6 {[%clk 0:02:38.4]} 10.
Qa4 {[%clk 0:02:41.5]} 10... Rc8 {[%clk 0:02:29.8]} 11. Bd2 {[%clk 0:02:34.9]}
11... cxd4 {[%clk 0:02:26.4]} 12. exd4 {[%clk 0:02:33.9]} 12... Rc7 {[%clk
0:02:14.6]} 13. Rfd1 {[%clk 0:02:26.9]} 13... dxc4 {[%clk 0:01:53.6]} 14. Bxb7
{[%clk 0:02:23.2]} 14... Rxb7 {[%clk 0:01:52.7]} 15. Qxa6 {[%clk 0:02:21.8]}
15... Qc7 {[%clk 0:01:52.2]} 16. Bf4 {[%clk 0:02:18.8]} 16... Bd6 {[%clk
0:01:51.1]} 17. Nb5 {[%clk 0:02:13.7]} 17... Qc6 {[%clk 0:01:33.8]} 18. Nxc6
{[%clk 0:02:11.7]} 1-0

[Event "Betsys MČR v online bleskovém šachu 2021"]
[Site "Chess.com"]
[Date "2021.04.17"]
[Round "1"]
[White "bumurubac"]
[Black "TCTCGTGCTATG"]
[Result "0-1"]
[WhiteElo "1016"]
[BlackElo "1911"]
[TimeControl "180+1"]
[EndTime "9:03:52 PDT"]
[Termination "Uživatel TCTCGTGCTATG zvítězil matem"]

1. e4 {[%clk 0:02:58.2]} 1... e5 {[%clk 0:02:59.4]} 2. Bc4 {[%clk 0:02:53.3]}
2... Nf6 {[%clk 0:02:58.6]} 3. Nf3 {[%clk 0:02:52.4]} 3... Nc6 {[%clk
0:02:56.8]} 4. Ng5 {[%clk 0:02:51]} 4... d5 {[%clk 0:02:56]} 5. exd5 {[%clk
0:02:50.4]} 5... Na5 {[%clk 0:02:55.4]} 6. Bb3 {[%clk 0:02:46.1]} 6... h6 {[%clk
0:02:53.3]} 7. Ne4 {[%clk 0:02:42.8]} 7... Nxe4 {[%clk 0:02:48.7]} 8. Qe2 {[%clk
0:02:42.1]} 8... Nf6 {[%clk 0:02:42.3]} 9. d3 {[%clk 0:02:30]} 9... Nxb3 {[%clk
0:02:37.3]} 10. cxb3 {[%clk 0:02:28.9]} 10... Bd6 {[%clk 0:02:36.6]} 11. O-O
{[%clk 0:02:26.8]} 11... O-O {[%clk 0:02:36.3]} 12. Re1 {[%clk 0:02:25.9]} 12...
Nxd5 {[%clk 0:02:32]} 13. Nc3 {[%clk 0:02:24.4]} 13... Nf4 {[%clk 0:02:29.5]}
14. Qe3 {[%clk 0:02:21.6]} 14... Be6 {[%clk 0:02:22.7]} 15. g3 {[%clk
0:02:17.4]} 15... Nd5 {[%clk 0:02:19.1]} 16. Nxd5 {[%clk 0:02:16.2]} 16... Bxd5
{[%clk 0:02:19]} 17. Bd2 {[%clk 0:02:15.7]} 17... Bc6 {[%clk 0:02:17.8]} 18. a4
{[%clk 0:02:14.1]} 18... Qf6 {[%clk 0:02:16.7]} 19. Rac1 {[%clk 0:02:08]} 19...
Rfe8 {[%clk 0:02:12.5]} 20. Bc3 {[%clk 0:02:06.4]} 20... Qe6 {[%clk 0:02:06.6]}
21. f4 {[%clk 0:02:05.1]} 21... Qh3 {[%clk 0:02:01.9]} 22. Re2 {[%clk 0:02:01]}
22... exf4 {[%clk 0:01:59.9]} 23. gxf4 {[%clk 0:01:58.4]} 23... Rxe3 {[%clk
0:01:58.3]} 24. Rxe3 {[%clk 0:01:57.4]} 24... Qg2# {[%clk 0:01:57.4]} 0-1

[Event "Betsys MČR v online bleskovém šachu 2021"]
[Site "Chess.com"]
[Date "2021.04.17"]
[Round "1"]
[White "kol340"]
[Black "WhiteLittleHorse"]
[Result "0-1"]
[WhiteElo "1820"]
[BlackElo "961"]
[TimeControl "180+1"]
[EndTime "9:03:59 PDT"]
[Termination "Uživatel WhiteLittleHorse zvítězil matem"]

1. d4 {[%clk 0:02:56.7]} 1... d5 {[%clk 0:02:57.7]} 2. Nf3 {[%clk 0:02:57.6]}
2... Nc6 {[%clk 0:02:57.4]} 3. Bf4 {[%clk 0:02:55.8]} 3... Nf6 {[%clk
0:02:57.7]} 4. e3 {[%clk 0:02:55.7]} 4... a6 {[%clk 0:02:55.6]} 5. c4 {[%clk
0:02:55.4]} 5... dxc4 {[%clk 0:02:53.5]} 6. Bxc4 {[%clk 0:02:54.9]} 6... e6
{[%clk 0:02:48.2]} 7. Nc3 {[%clk 0:02:54.5]} 7... Bb4 {[%clk 0:02:46.5]} 8. a3
{[%clk 0:02:53.8]} 8... b5 {[%clk 0:02:46.1]} 9. Bd3 {[%clk 0:02:45.3]} 9... a5
{[%clk 0:02:45.4]} 10. axb4 {[%clk 0:02:44.8]} 10... axb4 {[%clk 0:02:44.1]} 11.
Rxa8 {[%clk 0:02:44.3]} 11... bxc3 {[%clk 0:02:43.6]} 12. bxc3 {[%clk
0:02:44.7]} 12... Qe7 {[%clk 0:02:40.2]} 13. Bxb5 {[%clk 0:02:44.2]} 13... O-O
{[%clk 0:02:32.3]} 14. Bxc6 {[%clk 0:02:26.9]} 14... h6 {[%clk 0:02:24.7]} 15.
O-O {[%clk 0:02:26]} 15... Ne8 {[%clk 0:02:20.9]} 16. Bxe8 {[%clk 0:02:25]}
16... Rxe8 {[%clk 0:02:19]} 17. c4 {[%clk 0:02:18.9]} 17... Bb7 {[%clk 0:02:18]}
18. Rxe8+ {[%clk 0:02:18.3]} 18... Qxe8 {[%clk 0:02:16.6]} 19. c5 {[%clk
0:02:19.2]} 19... Bxf3 {[%clk 0:02:12.4]} 20. Qxf3 {[%clk 0:02:18.8]} 20... c6
{[%clk 0:02:10.7]} 21. Ra1 {[%clk 0:02:18.7]} 21... Qd7 {[%clk 0:02:08.3]} 22.
Rb1 {[%clk 0:02:18.1]} 22... Qc8 {[%clk 0:02:04.1]} 23. Rb8 {[%clk 0:02:17.2]}
23... Qxb8 {[%clk 0:02:00.8]} 24. Bxb8 {[%clk 0:02:18.1]} 24... Kh7 {[%clk
0:01:53.8]} 25. Qxc6 {[%clk 0:02:19]} 25... e5 {[%clk 0:01:51.2]} 26. Qd7 {[%clk
0:02:19.9]} 26... f6 {[%clk 0:01:49.4]} 27. c6 {[%clk 0:02:20.8]} 27... exd4
{[%clk 0:01:45.8]} 28. c7 {[%clk 0:02:21.7]} 28... dxe3 {[%clk 0:01:45]} 29.
c8=Q {[%clk 0:02:22.6]} 29... e2 {[%clk 0:01:43.7]} 30. Qcc7 {[%clk 0:02:23.5]}
30... e1=Q# {[%clk 0:01:39.5]} 0-1

[Event "Betsys MČR v online bleskovém šachu 2021"]
[Site "Chess.com"]
[Date "2021.04.17"]
[Round "1"]
[White "Newyork6"]
[Black "Jeff_CZE"]
[Result "0-1"]
[WhiteElo "333"]
[BlackElo "1842"]
[TimeControl "180+1"]
[EndTime "9:04:13 PDT"]
[Termination "Uživatel Jeff_CZE zvítězil matem"]

1. f4 {[%clk 0:02:59.5]} 1... e5 {[%clk 0:02:59.4]} 2. fxe5 {[%clk 0:02:58]}
2... d6 {[%clk 0:02:58.9]} 3. Nf3 {[%clk 0:02:57.9]} 3... dxe5 {[%clk 0:02:47]}
4. g3 {[%clk 0:02:58.8]} 4... Bd6 {[%clk 0:02:38.7]} 5. Bg2 {[%clk 0:02:59.7]}
5... Nc6 {[%clk 0:02:30.9]} 6. Bf1 {[%clk 0:03:00.6]} 6... h5 {[%clk 0:02:21.6]}
7. Bg2 {[%clk 0:03:01.5]} 7... h4 {[%clk 0:02:14.3]} 8. O-O {[%clk 0:03:02.4]}
8... hxg3 {[%clk 0:02:11.6]} 9. e3 {[%clk 0:03:03.3]} 9... e4 {[%clk 0:02:00.6]}
10. d3 {[%clk 0:03:04.2]} 10... exf3 {[%clk 0:01:53]} 11. hxg3 {[%clk
0:03:05.1]} 11... f2+ {[%clk 0:01:40.4]} 12. Kxf2 {[%clk 0:03:02.4]} 12... Bxg3+
{[%clk 0:01:34.8]} 13. Kxg3 {[%clk 0:02:59.1]} 13... Qh4+ {[%clk 0:01:29.6]} 14.
Kf3 {[%clk 0:02:52.6]} 14... Bg4+ {[%clk 0:01:28.3]} 15. Kf4 {[%clk 0:02:48.4]}
15... Bxd1+ {[%clk 0:01:13.9]} 16. Kf5 {[%clk 0:02:14.4]} 16... Qg4# {[%clk
0:00:59]} 0-1

[Event "Betsys MČR v online bleskovém šachu 2021"]
[Site "Chess.com"]
[Date "2021.04.17"]
[Round "1"]
[White "TrickyPeat"]
[Black "Staci_fiknout_Navara_Plat"]
[Result "1-0"]
[WhiteElo "2213"]
[BlackElo "1581"]
[TimeControl "180+1"]
[EndTime "9:04:17 PDT"]
[Termination "Uživatel TrickyPeat zvítězil matem"]

1. e4 {[%clk 0:02:58.4]} 1... d5 {[%clk 0:02:59.9]} 2. exd5 {[%clk 0:02:57.6]}
2... Nf6 {[%clk 0:02:57.8]} 3. d4 {[%clk 0:02:55.8]} 3... Nxd5 {[%clk
0:02:55.6]} 4. c4 {[%clk 0:02:55.3]} 4... Nf6 {[%clk 0:02:50.8]} 5. Nf3 {[%clk
0:02:53.3]} 5... c6 {[%clk 0:02:45.9]} 6. h3 {[%clk 0:02:50.9]} 6... Bf5 {[%clk
0:02:44.2]} 7. Nc3 {[%clk 0:02:49.6]} 7... Nbd7 {[%clk 0:02:43.1]} 8. Bd3 {[%clk
0:02:49.2]} 8... Nb6 {[%clk 0:02:43.3]} 9. Bxf5 {[%clk 0:02:47.5]} 9... e6
{[%clk 0:02:41.1]} 10. Bd3 {[%clk 0:02:45.9]} 10... Be7 {[%clk 0:02:40.8]} 11.
O-O {[%clk 0:02:45.3]} 11... O-O {[%clk 0:02:39.9]} 12. a4 {[%clk 0:02:44.3]}
12... Qc7 {[%clk 0:02:38.2]} 13. a5 {[%clk 0:02:40.6]} 13... Nbd7 {[%clk
0:02:36.6]} 14. Qe2 {[%clk 0:02:37.3]} 14... Rad8 {[%clk 0:02:36.6]} 15. Bg5
{[%clk 0:02:33.7]} 15... Nb8 {[%clk 0:02:35.9]} 16. Rfd1 {[%clk 0:02:27.9]}
16... Na6 {[%clk 0:02:34.7]} 17. Bxf6 {[%clk 0:02:22.9]} 17... Bxf6 {[%clk
0:02:34.3]} 18. Bb1 {[%clk 0:02:08.8]} 18... Rfe8 {[%clk 0:02:33.9]} 19. Ne4
{[%clk 0:02:05.7]} 19... Be7 {[%clk 0:02:31.7]} 20. Neg5 {[%clk 0:01:58.5]}
20... h6 {[%clk 0:02:28.9]} 21. Qe4 {[%clk 0:01:49.4]} 21... g6 {[%clk
0:02:17.8]} 22. Nxf7 {[%clk 0:01:48.4]} 22... Kxf7 {[%clk 0:02:08.6]} 23. Qxg6+
{[%clk 0:01:47.6]} 23... Kf8 {[%clk 0:02:08.7]} 24. Qxh6+ {[%clk 0:01:47.2]}
24... Kg8 {[%clk 0:02:04.5]} 25. Bh7+ {[%clk 0:01:45.6]} 25... Kf7 {[%clk
0:02:04]} 26. Ne5+ {[%clk 0:01:41.9]} 26... Qxe5 {[%clk 0:02:00.2]} 27. Qg6+
{[%clk 0:01:39.1]} 27... Kf8 {[%clk 0:01:58.9]} 28. Qg8# {[%clk 0:01:38.4]} 1-0

[Event "Betsys MČR v online bleskovém šachu 2021"]
[Site "Chess.com"]
[Date "2021.04.17"]
[Round "1"]
[White "vaclavbelaska"]
[Black "Simago"]
[Result "0-1"]
[WhiteElo "1406"]
[BlackElo "2095"]
[TimeControl "180+1"]
[EndTime "9:04:28 PDT"]
[Termination "Uživatel Simago zvítězil po vzdání soupeře"]

1. e4 {[%clk 0:02:57.5]} 1... c5 {[%clk 0:02:59.7]} 2. Nf3 {[%clk 0:02:55]} 2...
g6 {[%clk 0:02:59.4]} 3. d4 {[%clk 0:02:52.5]} 3... cxd4 {[%clk 0:03:00.3]} 4.
Nxd4 {[%clk 0:02:51.4]} 4... Bg7 {[%clk 0:03:00.3]} 5. Nc3 {[%clk 0:02:47.4]}
5... Nc6 {[%clk 0:03:00.3]} 6. Be3 {[%clk 0:02:31.1]} 6... Nf6 {[%clk
0:02:59.7]} 7. Bd3 {[%clk 0:02:23.8]} 7... O-O {[%clk 0:02:47.4]} 8. O-O {[%clk
0:02:21]} 8... d6 {[%clk 0:02:45.4]} 9. f3 {[%clk 0:02:19.3]} 9... Ne5 {[%clk
0:02:40.5]} 10. Qd2 {[%clk 0:02:18.5]} 10... Nxd3 {[%clk 0:02:39.7]} 11. Qxd3
{[%clk 0:02:17]} 11... Bd7 {[%clk 0:02:39.2]} 12. Qd2 {[%clk 0:02:15.6]} 12...
Rc8 {[%clk 0:02:34.3]} 13. Bh6 {[%clk 0:02:10.1]} 13... Qb6 {[%clk 0:02:30.8]}
14. Be3 {[%clk 0:02:07.3]} 14... Qxb2 {[%clk 0:02:11.6]} 15. Nd5 {[%clk
0:01:51]} 15... Nxd5 {[%clk 0:02:01.6]} 16. exd5 {[%clk 0:01:48.8]} 16... Qc3
{[%clk 0:01:57.6]} 17. Qxc3 {[%clk 0:01:43.4]} 17... Rxc3 {[%clk 0:01:56.2]} 18.
Rfe1 {[%clk 0:01:39.9]} 18... Rxe3 {[%clk 0:01:54.7]} 19. Rxe3 {[%clk
0:01:31.9]} 19... Bxd4 {[%clk 0:01:53.7]} 20. Kf2 {[%clk 0:01:26.6]} 20... Bxa1
{[%clk 0:01:49.6]} 0-1

[Event "Betsys MČR v online bleskovém šachu 2021"]
[Site "Chess.com"]
[Date "2021.04.17"]
[Round "1"]
[White "horalek"]
[Black "Evca64"]
[Result "0-1"]
[WhiteElo "1348"]
[BlackElo "2073"]
[TimeControl "180+1"]
[EndTime "9:04:34 PDT"]
[Termination "Uživatel Evca64 zvítězil po vzdání soupeře"]

1. e4 {[%clk 0:02:58.9]} 1... c6 {[%clk 0:02:59.6]} 2. Nf3 {[%clk 0:02:57.3]}
2... d5 {[%clk 0:02:59.5]} 3. exd5 {[%clk 0:02:56.5]} 3... cxd5 {[%clk
0:02:59.1]} 4. d4 {[%clk 0:02:55.9]} 4... Nc6 {[%clk 0:02:58.5]} 5. c3 {[%clk
0:02:53.5]} 5... Bg4 {[%clk 0:02:57.4]} 6. Bd3 {[%clk 0:02:52.6]} 6... e6 {[%clk
0:02:55.6]} 7. O-O {[%clk 0:02:51.9]} 7... Bd6 {[%clk 0:02:54.1]} 8. Bg5 {[%clk
0:02:50.1]} 8... Bxf3 {[%clk 0:02:39.6]} 9. Qxf3 {[%clk 0:02:43]} 9... Qxg5
{[%clk 0:02:38.6]} 10. Nd2 {[%clk 0:02:31.7]} 10... Qxd2 {[%clk 0:02:34.9]} 11.
Rad1 {[%clk 0:02:22.6]} 11... Qf4 {[%clk 0:02:33.5]} 12. Qh3 {[%clk 0:02:18.3]}
12... Nf6 {[%clk 0:02:28.3]} 13. g3 {[%clk 0:02:16.8]} 13... Qg4 {[%clk
0:02:20.6]} 14. Qg2 {[%clk 0:02:14.7]} 14... O-O {[%clk 0:02:04.1]} 15. f3
{[%clk 0:02:13.6]} 15... Qh5 {[%clk 0:02:02.9]} 16. g4 {[%clk 0:02:08.9]} 16...
Qh4 {[%clk 0:02:01.6]} 17. b4 {[%clk 0:01:51.7]} 17... Rac8 {[%clk 0:01:56.4]}
18. Rc1 {[%clk 0:01:47.5]} 18... Ne7 {[%clk 0:01:55.6]} 19. Be2 {[%clk
0:01:34.6]} 19... Ng6 {[%clk 0:01:54.6]} 20. h3 {[%clk 0:01:20.9]} 20... Nf4
{[%clk 0:01:53.5]} 21. Qf2 {[%clk 0:01:17.6]} 21... Nxh3+ {[%clk 0:01:52.2]} 0-1

[Event "Betsys MČR v online bleskovém šachu 2021"]
[Site "Chess.com"]
[Date "2021.04.17"]
[Round "1"]
[White "vikysachy"]
[Black "Dan1612"]
[Result "0-1"]
[WhiteElo "852"]
[BlackElo "1878"]
[TimeControl "180+1"]
[EndTime "9:04:48 PDT"]
[Termination "Uživatel Dan1612 zvítězil – soupeř opustil hru"]

1. e4 {[%clk 0:03:00.6]} 1... c5 {[%clk 0:02:59.8]} 2. Nf3 {[%clk 0:02:59.7]}
2... Nc6 {[%clk 0:02:59.9]} 3. Nc3 {[%clk 0:02:59.9]} 3... e5 {[%clk 0:02:48.4]}
4. Bc4 {[%clk 0:02:59.1]} 4... d6 {[%clk 0:02:45.7]} 5. d3 {[%clk 0:02:55.2]}
5... Be7 {[%clk 0:02:44.7]} 6. h3 {[%clk 0:02:52.3]} 6... Nf6 {[%clk 0:02:44.9]}
7. Qe2 {[%clk 0:02:33.6]} 7... Be6 {[%clk 0:02:37.3]} 8. Be3 {[%clk 0:02:32.8]}
8... Bxc4 {[%clk 0:02:34.7]} 9. dxc4 {[%clk 0:02:31.8]} 9... Nd4 {[%clk
0:02:32]} 10. Qd3 {[%clk 0:02:25.5]} 10... Qb6 {[%clk 0:02:23]} 11. O-O {[%clk
0:02:15.4]} 11... Nxf3+ {[%clk 0:02:21.1]} 12. Kh1 {[%clk 0:02:11.1]} 12... Nd4
{[%clk 0:02:20.5]} 13. Bxd4 {[%clk 0:02:06.9]} 13... cxd4 {[%clk 0:02:17.9]} 14.
Ne2 {[%clk 0:02:01.2]} 14... Qc6 {[%clk 0:02:13.3]} 15. Qg3 {[%clk 0:01:53.1]}
15... h6 {[%clk 0:02:06.7]} 16. Qxg7 {[%clk 0:01:50.6]} 16... O-O-O {[%clk
0:02:03.3]} 17. Qxf7 {[%clk 0:01:46.8]} 17... Rde8 {[%clk 0:01:59]} 18. Qe6+
{[%clk 0:01:40.2]} 18... Kb8 {[%clk 0:01:57.5]} 19. Nc1 {[%clk 0:01:29.3]} 19...
Nxe4 {[%clk 0:01:53.6]} 20. Nb3 {[%clk 0:01:21.3]} 20... Rhg8 {[%clk 0:01:49.5]}
0-1

[Event "Betsys MČR v online bleskovém šachu 2021"]
[Site "Chess.com"]
[Date "2021.04.17"]
[Round "1"]
[White "zarathutra"]
[Black "FormerProdigy"]
[Result "0-1"]
[WhiteElo "1823"]
[BlackElo "2856"]
[TimeControl "180+1"]
[EndTime "9:04:55 PDT"]
[Termination "Uživatel FormerProdigy zvítězil po vzdání soupeře"]

1. d4 {[%clk 0:03:00.9]} 1... Nf6 {[%clk 0:02:59.1]} 2. c4 {[%clk 0:03:00.8]}
2... e6 {[%clk 0:02:58.8]} 3. Nf3 {[%clk 0:02:58.7]} 3... b6 {[%clk 0:02:57.8]}
4. g3 {[%clk 0:02:56.8]} 4... Ba6 {[%clk 0:02:57.6]} 5. b3 {[%clk 0:02:55.5]}
5... Bb4+ {[%clk 0:02:57.4]} 6. Bd2 {[%clk 0:02:54.6]} 6... Be7 {[%clk
0:02:57.3]} 7. Bg2 {[%clk 0:02:50.8]} 7... O-O {[%clk 0:02:54.5]} 8. O-O {[%clk
0:02:42.9]} 8... d5 {[%clk 0:02:54]} 9. Ne5 {[%clk 0:02:32.8]} 9... Bb7 {[%clk
0:02:51.1]} 10. Qc2 {[%clk 0:02:14.5]} 10... c5 {[%clk 0:02:46.3]} 11. dxc5
{[%clk 0:02:11.4]} 11... bxc5 {[%clk 0:02:30.2]} 12. cxd5 {[%clk 0:02:08.2]}
12... exd5 {[%clk 0:02:31.1]} 13. Be3 {[%clk 0:01:20.7]} 13... Qc7 {[%clk
0:02:20.5]} 14. Bf4 {[%clk 0:01:14.4]} 14... g5 {[%clk 0:02:11.1]} 15. Ng6
{[%clk 0:01:01.7]} 15... gxf4 {[%clk 0:02:10.2]} 16. Nxf8 {[%clk 0:01:01.8]}
16... Bxf8 {[%clk 0:02:09.7]} 17. gxf4 {[%clk 0:00:59.7]} 17... Qxf4 {[%clk
0:02:06]} 18. Kh1 {[%clk 0:00:54.7]} 18... Ng4 {[%clk 0:02:04.3]} 0-1

[Event "Betsys MČR v online bleskovém šachu 2021"]
[Site "Chess.com"]
[Date "2021.04.17"]
[Round "1"]
[White "ritchi12"]
[Black "matej-c"]
[Result "0-1"]
[WhiteElo "1193"]
[BlackElo "1987"]
[TimeControl "180+1"]
[EndTime "9:04:55 PDT"]
[Termination "Uživatel matej-c zvítězil matem"]

1. e4 {[%clk 0:02:59.7]} 1... e5 {[%clk 0:02:59.3]} 2. Nf3 {[%clk 0:02:59.4]}
2... Nf6 {[%clk 0:02:59]} 3. Nc3 {[%clk 0:02:58.6]} 3... Nc6 {[%clk 0:02:57.6]}
4. d4 {[%clk 0:02:55.9]} 4... exd4 {[%clk 0:02:56.4]} 5. Nxd4 {[%clk 0:02:56.1]}
5... Bb4 {[%clk 0:02:54.6]} 6. Nxc6 {[%clk 0:02:54.5]} 6... bxc6 {[%clk
0:02:52.6]} 7. Bd2 {[%clk 0:02:53.9]} 7... O-O {[%clk 0:02:44.8]} 8. Bd3 {[%clk
0:02:53.2]} 8... Re8 {[%clk 0:02:41.8]} 9. Qe2 {[%clk 0:02:51.4]} 9... Qe7
{[%clk 0:02:29.2]} 10. O-O-O {[%clk 0:02:50.5]} 10... d5 {[%clk 0:01:58.5]} 11.
f3 {[%clk 0:02:46.3]} 11... dxe4 {[%clk 0:01:49]} 12. fxe4 {[%clk 0:02:45.6]}
12... Bg4 {[%clk 0:01:44.7]} 13. Qe3 {[%clk 0:02:35.6]} 13... Bxd1 {[%clk
0:01:39.6]} 14. Rxd1 {[%clk 0:02:34.3]} 14... Nd7 {[%clk 0:01:31.5]} 15. Re1
{[%clk 0:02:29.2]} 15... Ne5 {[%clk 0:01:31.2]} 16. Na4 {[%clk 0:02:21.7]} 16...
Bxd2+ {[%clk 0:01:22.4]} 17. Qxd2 {[%clk 0:02:20.9]} 17... Rad8 {[%clk
0:01:19.2]} 18. Qa5 {[%clk 0:02:12.1]} 18... Qg5+ {[%clk 0:01:02.4]} 19. Kb1
{[%clk 0:02:09.8]} 19... Qxg2 {[%clk 0:00:52.4]} 20. Qxa7 {[%clk 0:02:08.2]}
20... Qd2 {[%clk 0:00:43.8]} 21. Nc5 {[%clk 0:02:02.3]} 21... Qxe1# {[%clk
0:00:42.7]} 0-1

[Event "Betsys MČR v online bleskovém šachu 2021"]
[Site "Chess.com"]
[Date "2021.04.17"]
[Round "1"]
[White "fm_magua"]
[Black "8_olda_8"]
[Result "1-0"]
[WhiteElo "2509"]
[BlackElo "1782"]
[TimeControl "180+1"]
[EndTime "9:04:56 PDT"]
[Termination "Uživatel fm_magua zvítězil matem"]

1. e4 {[%clk 0:03:00.9]} 1... e6 {[%clk 0:02:55.2]} 2. d3 {[%clk 0:03:00.2]}
2... d5 {[%clk 0:02:49.9]} 3. Nd2 {[%clk 0:02:59.9]} 3... c5 {[%clk 0:02:42.5]}
4. g3 {[%clk 0:02:59.4]} 4... Nf6 {[%clk 0:02:41]} 5. Bg2 {[%clk 0:02:59.9]}
5... Nc6 {[%clk 0:02:26.9]} 6. Ngf3 {[%clk 0:02:59.5]} 6... Qc7 {[%clk
0:02:20.4]} 7. O-O {[%clk 0:02:59.1]} 7... Be7 {[%clk 0:02:16.9]} 8. Re1 {[%clk
0:02:59.2]} 8... O-O {[%clk 0:02:16.8]} 9. e5 {[%clk 0:02:59.4]} 9... Nd7 {[%clk
0:02:16.3]} 10. Qe2 {[%clk 0:03:00]} 10... b5 {[%clk 0:02:14.9]} 11. Nf1 {[%clk
0:02:59.9]} 11... Bb7 {[%clk 0:02:14.9]} 12. Bf4 {[%clk 0:02:59.3]} 12... a5
{[%clk 0:02:08]} 13. h4 {[%clk 0:02:58]} 13... Ba6 {[%clk 0:02:03.5]} 14. Ne3
{[%clk 0:02:52.4]} 14... Qb6 {[%clk 0:01:59.3]} 15. Ng4 {[%clk 0:02:50.4]} 15...
c4 {[%clk 0:01:52.9]} 16. Bg5 {[%clk 0:02:48.1]} 16... Bxg5 {[%clk 0:01:48.1]}
17. hxg5 {[%clk 0:02:47.9]} 17... Nd4 {[%clk 0:01:48]} 18. Nxd4 {[%clk
0:02:44.7]} 18... Qxd4 {[%clk 0:01:47.7]} 19. Rad1 {[%clk 0:02:43.1]} 19... Rac8
{[%clk 0:01:44.1]} 20. c3 {[%clk 0:02:43.2]} 20... Qc5 {[%clk 0:01:38.7]} 21. d4
{[%clk 0:02:43.3]} 21... Qe7 {[%clk 0:01:39.2]} 22. Qe3 {[%clk 0:02:37.1]} 22...
b4 {[%clk 0:01:36.4]} 23. Nf6+ {[%clk 0:02:37.2]} 23... Kh8 {[%clk 0:01:34.8]}
24. Qf4 {[%clk 0:02:27.6]} 24... Rg8 {[%clk 0:01:25.4]} 25. Nxg8 {[%clk
0:02:11.5]} 25... Rxg8 {[%clk 0:01:24.6]} 26. Bf3 {[%clk 0:02:11.7]} 26... a4
{[%clk 0:01:22.7]} 27. Kg2 {[%clk 0:02:10.6]} 27... a3 {[%clk 0:01:22.4]} 28.
Rh1 {[%clk 0:02:09.5]} 28... axb2 {[%clk 0:01:18.1]} 29. Rxh7+ {[%clk
0:02:02.4]} 29... Kxh7 {[%clk 0:01:13.2]} 30. Qh4+ {[%clk 0:02:03.3]} 30... Kg6
{[%clk 0:01:13.1]} 31. Bh5+ {[%clk 0:01:55.1]} 31... Kf5 {[%clk 0:01:13.2]} 32.
Qg4# {[%clk 0:01:53.7]} 1-0

[Event "Betsys MČR v online bleskovém šachu 2021"]
[Site "Chess.com"]
[Date "2021.04.17"]
[Round "1"]
[White "jsebesta"]
[Black "petrgnojek"]
[Result "0-1"]
[WhiteElo "1617"]
[BlackElo "2258"]
[TimeControl "180+1"]
[EndTime "9:04:56 PDT"]
[Termination "Uživatel petrgnojek zvítězil po vzdání soupeře"]

1. e4 {[%clk 0:03:00.7]} 1... c5 {[%clk 0:02:59.5]} 2. c3 {[%clk 0:02:59.4]}
2... d5 {[%clk 0:02:58.9]} 3. exd5 {[%clk 0:02:58.3]} 3... Qxd5 {[%clk
0:02:59.8]} 4. d4 {[%clk 0:02:58.2]} 4... Nf6 {[%clk 0:02:58.7]} 5. Nf3 {[%clk
0:02:55.2]} 5... Nc6 {[%clk 0:02:58.7]} 6. Nbd2 {[%clk 0:02:53.8]} 6... cxd4
{[%clk 0:02:55.1]} 7. Bc4 {[%clk 0:02:44.8]} 7... Qa5 {[%clk 0:02:53.5]} 8. cxd4
{[%clk 0:02:40.4]} 8... Bg4 {[%clk 0:02:52.6]} 9. d5 {[%clk 0:02:20]} 9... Nxd5
{[%clk 0:02:44.8]} 10. Bxd5 {[%clk 0:02:17.4]} 10... Qxd5 {[%clk 0:02:44.1]} 11.
O-O {[%clk 0:02:17.9]} 11... e6 {[%clk 0:02:43.3]} 12. Qa4 {[%clk 0:02:15.4]}
12... h5 {[%clk 0:02:33.8]} 13. h3 {[%clk 0:02:13.3]} 13... Bf5 {[%clk
0:02:27.7]} 14. b4 {[%clk 0:02:01.4]} 14... Bxb4 {[%clk 0:02:24.5]} 15. Nb3
{[%clk 0:01:57.1]} 15... O-O {[%clk 0:02:17.3]} 16. Bb2 {[%clk 0:01:47.4]} 16...
a5 {[%clk 0:02:06.4]} 17. Nbd4 {[%clk 0:01:39.8]} 17... Nxd4 {[%clk 0:01:59.7]}
18. Bxd4 {[%clk 0:01:28.9]} 18... Be4 {[%clk 0:01:58.5]} 19. Qd1 {[%clk
0:00:50.4]} 19... Bxf3 {[%clk 0:01:56.3]} 20. gxf3 {[%clk 0:00:50.4]} 20... Rfd8
{[%clk 0:01:53.9]} 0-1

[Event "Betsys MČR v online bleskovém šachu 2021"]
[Site "Chess.com"]
[Date "2021.04.17"]
[Round "1"]
[White "VojtechPlat"]
[Black "Dejfos"]
[Result "1-0"]
[WhiteElo "2865"]
[BlackElo "1825"]
[TimeControl "180+1"]
[EndTime "9:05:04 PDT"]
[Termination "Uživatel VojtechPlat zvítězil po vzdání soupeře"]

1. e4 {[%clk 0:03:00.5]} 1... c6 {[%clk 0:02:57.1]} 2. Nf3 {[%clk 0:02:58.6]}
2... d5 {[%clk 0:02:56]} 3. d3 {[%clk 0:02:58.5]} 3... e6 {[%clk 0:02:46.1]} 4.
Nbd2 {[%clk 0:02:57.4]} 4... Bd6 {[%clk 0:02:45.3]} 5. g3 {[%clk 0:02:56]} 5...
Nd7 {[%clk 0:02:37.1]} 6. Bg2 {[%clk 0:02:55.5]} 6... Ngf6 {[%clk 0:02:33.5]} 7.
O-O {[%clk 0:02:55]} 7... O-O {[%clk 0:02:32.7]} 8. Qe2 {[%clk 0:02:53.3]} 8...
b6 {[%clk 0:02:23.2]} 9. e5 {[%clk 0:02:52.7]} 9... Nxe5 {[%clk 0:02:00.8]} 10.
Nxe5 {[%clk 0:02:51.8]} 10... Qc7 {[%clk 0:01:58.3]} 11. d4 {[%clk 0:02:44]}
11... c5 {[%clk 0:01:57.5]} 12. c3 {[%clk 0:02:43.1]} 12... a5 {[%clk
0:01:56.8]} 13. Re1 {[%clk 0:02:42.3]} 13... Ba6 {[%clk 0:01:56.3]} 14. Qd1
{[%clk 0:02:39.9]} 14... cxd4 {[%clk 0:01:55.9]} 15. cxd4 {[%clk 0:02:39.5]}
15... Rac8 {[%clk 0:01:39.8]} 16. Nf1 {[%clk 0:02:39]} 16... Bb4 {[%clk
0:01:35.6]} 17. Bd2 {[%clk 0:02:38]} 17... Ne8 {[%clk 0:01:16]} 18. Bxb4 {[%clk
0:02:37]} 18... axb4 {[%clk 0:01:15.6]} 19. Rc1 {[%clk 0:02:36.2]} 19... Qb7
{[%clk 0:01:13.8]} 20. Rxc8 {[%clk 0:02:35.2]} 20... Qxc8 {[%clk 0:01:13.6]} 21.
Qd2 {[%clk 0:02:35.3]} 21... Qa8 {[%clk 0:00:34.7]} 22. Nd7 {[%clk 0:02:32.9]}
22... Bxf1 {[%clk 0:00:31.8]} 23. Bxf1 {[%clk 0:02:31.9]} 23... Qxa2 {[%clk
0:00:28.5]} 24. Qxb4 {[%clk 0:02:27.1]} 1-0